[Event "African Games-chT 2019"]
[Site "Casablanca"]
[Date "2019.08.25"]
[Round "6.18"]
[White "Gole, Habtamu Ashenafi"]
[Black "Sang, Ricky"]
[Result "1-0"]
[ECO "B90"]
[WhiteElo "2046"]
[BlackElo "1971"]
[Annotator "NA"]
[PlyCount "99"]
[EventDate "2019.08.24"]
[EventType "team-tourn"]
[EventCountry "MAR"]
[SourceTitle "playchess.com"]
[Source "ChessBase"]
[SourceQuality "1"]
[WhiteTeam "Ethiopia"]
[BlackTeam "Kenya"]
[WhiteTeamCountry "ETH"]
[BlackTeamCountry "KEN"]
[TimeControl "900+10"]

1. e4 {[%emt 0:00:00]} c5 {[%emt 0:00:00]} 2. Nf3 {[%emt 0:00:00]} d6 {[%emt 0:00:00]} 3. d4 {[%emt 0:00:00]} cxd4 {[%emt 0:00:00]} 4. Nxd4 {[%emt 0:00:00]} Nf6 {[%emt 0:00:08]} 5. Nc3 {[%emt 0:00:02]} a6 {[%emt 0:00:07]} 6. a4 {[%emt 0:00:21]} e6 {[%emt 0:00:16]} 7. Be2 {[%emt 0:00:11]} Be7 {[%emt 0:00:07]} 8. O-O {[%emt 0:00:03]} O-O {[%emt 0:00:05]} 9. Kh1 {[%emt 0:00:15]} Qc7 {[%emt 0:00:30]} 10. f4 {[%emt 0:00:07]} Bd7 {[%emt 0:00:47]} 11. Be3 {[%emt 0:01:18]} Nc6 {[%emt 0:00:10]} 12. Nb3 {[%emt 0:00:39]} Rac8 {[%emt 0:01:13]} 13. a5 {[%emt 0:00:12]} Nb4 {[%emt 0:01:31]} 14. Bb6 {[%emt 0:00:54]} Qb8 {[%emt 0:00:33]} 15. Rc1 {[%emt 0:00:43]} Bc6 {[%emt 0:02:31]} 16. Qd4 {[%emt 0:02:18]} d5 {[%emt 0:04:41]} 17. Bc5 {[%emt 0:00:48]} Bxc5 {[%emt 0:00:17]} 18. Qxc5 {[%emt 0:00:06]} Nxc2 {[%emt 0:00:41]} 19. Rxc2 {[%emt 0:00:08]} dxe4 {[%emt 0:01:41]} 20. Rcc1 {[%emt 0:02:02]} Nd5 {[%emt 0:01:13]} 21. Qf2 {[%emt 0:02:17]} Nb4 {[%emt 0:00:36]} 22. Nd4 {[%emt 0:00:17]} Bd5 {[%emt 0:00:27]} 23. Rfe1 {[%emt 0:01:06]} Nd3 {[%emt 0:00:04]} 24. Bxd3 {[%emt 0:00:04]} exd3 {[%emt 0:00:02]} 25. Nxd5 {[%emt 0:00:16]} exd5 {[%emt 0:00:02]} 26. Qd2 {[%emt 0:00:07]} Rxc1 {[%emt 0:00:14]} 27. Rxc1 {[%emt 0:00:02]} Rc8 {[%emt 0:00:07]} 28. Rf1 {[%emt 0:00:19]} Qc7 {[%emt 0:00:12]} 29. Qxd3 {[%emt 0:00:03]} Qxa5 {[%emt 0:00:06]} 30. Nf5 {[%emt 0:00:11]} Re8 {[%emt 0:00:17]} 31. Qd4 {[%emt 0:00:33]} f6 {[%emt 0:00:08]} 32. Qf2 {[%emt 0:00:33]} Qc7 {[%emt 0:00:11]} 33. Qg3 {[%emt 0:00:09]} Kh8 {[%emt 0:00:12]} 34. h4 {[%emt 0:00:09]} h6 {[%emt 0:00:08]} 35. Kh2 {[%emt 0:00:11]} b5 {[%emt 0:00:03]} 36. Rc1 {[%emt 0:00:10]} Qd7 {[%emt 0:00:13]} 37. Qg6 {[%emt 0:00:21]} Rd8 {[%emt 0:00:19]} 38. Re1 {[%emt 0:00:06]} Qc7 {[%emt 0:00:15]} 39. Kh3 {[%emt 0:00:56]} Rg8 {[%emt 0:00:44]} 40. Re7 {[%emt 0:00:41]} Qxf4 {[%emt 0:00:17]} 41. Rxg7 {[%emt 0:00:29]} Qxf5+ {[%emt 0:00:24]} 42. Qxf5 {[%emt 0:00:03]} Rxg7 {[%emt 0:00:02]} 43. Qxf6 Kh7 {[%emt 0:00:08]} 44. Qxa6 {[%emt 0:00:08]} b4 {[%emt 0:00:12]} 45. Qd3+ {[%emt 0:00:04]} Kh8 {[%emt 0:00:05]} 46. Qxd5 {[%emt 0:00:02]} Kh7 {[%emt 0:00:13]} 47. Qe4+ {[%emt 0:00:03]} Kh8 {[%emt 0:00:01]} 48. Qxb4 {[%emt 0:00:02]} h5 {[%emt 0:00:09]} 49. Qd4 {[%emt 0:00:06]} Kh7 {[%emt 0:00:02]} 50. Qxg7+ 1-0

[Event "African Games-chT 2019"]
[Site "Casablanca"]
[Date "2019.08.25"]
[Round "6.19"]
[White "Ndirangu, Joyce Nyaruai"]
[Black "Haile, Lidet Abate"]
[Result "0-1"]
[ECO "D00"]
[WhiteElo "1662"]
[BlackElo "1593"]
[Annotator "NA"]
[PlyCount "84"]
[EventDate "2019.08.24"]
[EventType "team-tourn"]
[EventCountry "MAR"]
[SourceTitle "playchess.com"]
[Source "ChessBase"]
[SourceQuality "1"]
[WhiteTeam "Kenya"]
[BlackTeam "Ethiopia"]
[WhiteTeamCountry "KEN"]
[BlackTeamCountry "ETH"]
[TimeControl "900+10"]

1. d4 {[%emt 0:00:00]} d5 {[%emt 0:00:00]} 2. Bf4 {[%emt 0:00:00]} Bf5 {[%emt 0:00:00]} 3. e3 {[%emt 0:00:00]} e6 {[%emt 0:00:09]} 4. Be2 {[%emt 0:00:06]} Be7 {[%emt 0:00:26]} 5. Nf3 {[%emt 0:00:04]} h6 {[%emt 0:00:14]} 6. Nbd2 {[%emt 0:00:52]} Nf6 {[%emt 0:00:19]} 7. c3 {[%emt 0:00:03]} Nbd7 {[%emt 0:00:18]} 8. Ne5 {[%emt 0:01:02]} c6 {[%emt 0:01:32]} 9. Ndf3 {[%emt 0:01:41]} Nh5 {[%emt 0:01:41]} 10. Nxd7 {[%emt 0:00:25]} Nxf4 {[%emt 0:00:27]} 11. exf4 {[%emt 0:00:03]} Qxd7 {[%emt 0:00:05]} 12. Ne5 {[%emt 0:00:03]} Qc7 {[%emt 0:00:22]} 13. Bh5 {[%emt 0:04:07]} O-O {[%emt 0:00:39]} 14. g3 {[%emt 0:02:01]} f6 {[%emt 0:02:23]} 15. Ng4 {[%emt 0:01:47]} Kh7 {[%emt 0:02:56]} 16. Ne3 {[%emt 0:00:09]} Be4 {[%emt 0:00:46]} 17. f3 {[%emt 0:00:30]} Bf5 {[%emt 0:00:19]} 18. Nxf5 {[%emt 0:01:03]} exf5 19. Qc2 g6 {[%emt 0:00:06]} 20. g4 {[%emt 0:00:55]} Qxf4 {[%emt 0:01:20]} 21. Bxg6+ {[%emt 0:01:13]} Kxg6 {[%emt 0:00:00]} 22. Kf2 {[%emt 0:00:04]} Rg8 {[%emt 0:00:25]} 23. Rae1 {[%emt 0:00:13]} Rae8 {[%emt 0:00:45]} 24. gxf5+ {[%emt 0:00:37]} Kh7 {[%emt 0:00:04]} 25. Qd3 {[%emt 0:01:25]} Qh4+ {[%emt 0:00:44]} 26. Kf1 {[%emt 0:00:02]} Qh3+ {[%emt 0:00:03]} 27. Ke2 {[%emt 0:00:04]} Bd6+ {[%emt 0:00:07]} 28. Kd1 {[%emt 0:00:02]} Rxe1+ {[%emt 0:00:26]} 29. Rxe1 {[%emt 0:00:32]} Qxh2 {[%emt 0:00:05]} 30. Qc2 {[%emt 0:00:45]} Qxc2+ {[%emt 0:00:09]} 31. Kxc2 {[%emt 0:00:00]} Kg7 {[%emt 0:00:06]} 32. Re6 {[%emt 0:00:03]} Rd8 {[%emt 0:00:18]} 33. Kd3 {[%emt 0:00:01]} Kf7 {[%emt 0:00:01]} 34. b3 {[%emt 0:00:09]} Bf4 {[%emt 0:00:06]} 35. c4 {[%emt 0:00:02]} dxc4+ {[%emt 0:00:09]} 36. bxc4 {[%emt 0:00:01]} Be5 {[%emt 0:00:14]} 37. d5 {[%emt 0:00:23]} cxd5 {[%emt 0:00:05]} 38. c5 {[%emt 0:00:03]} Re8 {[%emt 0:00:22]} 39. a4 {[%emt 0:00:26]} Rxe6 {[%emt 0:00:02]} 40. fxe6+ {[%emt 0:00:01]} Kxe6 {[%emt 0:00:02]} 41. a5 {[%emt 0:00:04]} Bc7 {[%emt 0:00:06]} 42. a6 {[%emt 0:00:07]} bxa6 {[%emt 0:00:03]} 0-1

[Event "African Games-chT 2019"]
[Site "Casablanca"]
[Date "2019.08.25"]
[Round "6.20"]
[White "Eshete, Ruth Leykun"]
[Black "Mongeli, Sasha"]
[Result "0-1"]
[ECO "C42"]
[WhiteElo "1495"]
[BlackElo "1527"]
[Annotator "NA"]
[PlyCount "81"]
[EventDate "2019.08.24"]
[EventType "team-tourn"]
[EventCountry "MAR"]
[SourceTitle "playchess.com"]
[Source "ChessBase"]
[SourceQuality "1"]
[WhiteTeam "Ethiopia"]
[BlackTeam "Kenya"]
[WhiteTeamCountry "ETH"]
[BlackTeamCountry "KEN"]
[TimeControl "900+10"]

1. e4 {[%emt 0:00:00]} e5 {[%emt 0:00:00]} 2. Nf3 {[%emt 0:00:00]} Nf6 {[%emt 0:00:00]} 3. Nc3 {[%emt 0:00:04]} Bb4 {[%emt 0:00:22]} 4. d3 {[%emt 0:00:38]} Nc6 {[%emt 0:00:23]} 5. Bd2 {[%emt 0:00:44]} O-O {[%emt 0:00:32]} 6. a3 {[%emt 0:00:31]} Be7 {[%emt 0:00:34]} 7. g3 {[%emt 0:00:54]} d6 {[%emt 0:00:13]} 8. Bg2 {[%emt 0:00:14]} Be6 {[%emt 0:00:28]} 9. O-O {[%emt 0:00:12]} Qd7 {[%emt 0:00:33]} 10. Bg5 {[%emt 0:01:12]} h6 {[%emt 0:00:05]} 11. Bd2 {[%emt 0:00:24]} Bh3 {[%emt 0:00:26]} 12. b4 {[%emt 0:01:27]} a6 {[%emt 0:00:27]} 13. Ne1 {[%emt 0:01:02]} Nd4 {[%emt 0:00:29]} 14. f4 {[%emt 0:00:45]} Bxg2 {[%emt 0:00:50]} 15. Nxg2 {[%emt 0:01:07]} Qh3 {[%emt 0:00:41]} 16. Ne3 {[%emt 0:01:17]} c6 {[%emt 0:01:13]} 17. Ne2 {[%emt 0:01:29]} Nxe2+ {[%emt 0:02:02]} 18. Qxe2 {[%emt 0:00:08]} Rfe8 {[%emt 0:01:38]} 19. Qg2 {[%emt 0:00:29]} Qxg2+ {[%emt 0:00:07]} 20. Nxg2 {[%emt 0:00:23]} Nd7 {[%emt 0:00:17]} 21. Bc3 {[%emt 0:01:02]} Bf6 {[%emt 0:00:42]} 22. Ne1 {[%emt 0:00:56]} Nb6 {[%emt 0:00:17]} 23. Rd1 {[%emt 0:01:30]} Nd7 {[%emt 0:00:26]} 24. fxe5 {[%emt 0:00:33]} Bxe5 {[%emt 0:00:06]} 25. Bxe5 {[%emt 0:00:19]} Nxe5 {[%emt 0:00:03]} 26. Nf3 {[%emt 0:00:08]} Re7 {[%emt 0:00:22]} 27. Nxe5 {[%emt 0:00:08]} Rxe5 {[%emt 0:00:02]} 28. Rf4 {[%emt 0:00:08]} Rae8 {[%emt 0:00:09]} 29. Rdf1 {[%emt 0:00:06]} f6 {[%emt 0:00:13]} 30. Rf5 {[%emt 0:00:11]} Kf7 {[%emt 0:00:26]} 31. Kg2 {[%emt 0:00:16]} Ra8 {[%emt 0:00:49]} 32. c3 a5 {[%emt 0:00:26]} 33. Kh3 {[%emt 0:01:05]} Rxf5 {[%emt 0:00:09]} 34. Rxf5 {[%emt 0:00:02]} axb4 {[%emt 0:00:02]} 35. axb4 {[%emt 0:01:10]} Ra3 {[%emt 0:00:02]} 36. Ra5 {[%emt 0:00:09]} Rxc3 {[%emt 0:00:09]} 37. Ra7 {[%emt 0:00:15]} Rxd3 {[%emt 0:00:15]} 38. Rxb7+ {[%emt 0:00:06]} Kg6 {[%emt 0:00:02]} 39. Rc7 {[%emt 0:00:05]} Rc3 {[%emt 0:00:59]} 40. b5 {[%emt 0:00:14]} c5 {[%emt 0:00:16]} 41. b6 0-1

[Event "African Games-chT 2019"]
[Site "Casablanca"]
[Date "2019.08.25"]
[Round "6.21"]
[White "Chumfwa, Stanley"]
[Black "Mwale, Joseph"]
[Result "0-1"]
[ECO "D37"]
[WhiteElo "2317"]
[BlackElo "2231"]
[Annotator "NA"]
[PlyCount "130"]
[EventDate "2019.08.24"]
[EventType "team-tourn"]
[EventCountry "MAR"]
[SourceTitle "playchess.com"]
[Source "ChessBase"]
[SourceQuality "1"]
[WhiteTeam "Zambia"]
[BlackTeam "MAW"]
[WhiteTeamCountry "ZAM"]
[TimeControl "900+10"]

1. Nf3 {[%emt 0:00:00]} Nf6 {[%emt 0:00:00]} 2. d4 {[%emt 0:00:00]} e6 {[%emt 0:00:00]} 3. c4 {[%emt 0:00:00]} d5 {[%emt 0:00:00]} 4. Nc3 {[%emt 0:00:00]} Be7 {[%emt 0:00:00]} 5. Bg5 {[%emt 0:00:01]} h6 {[%emt 0:00:06]} 6. Bxf6 {[%emt 0:00:08]} Bxf6 {[%emt 0:00:01]} 7. e3 {[%emt 0:00:01]} O-O {[%emt 0:00:08]} 8. Rc1 {[%emt 0:00:00]} c5 {[%emt 0:00:12]} 9. cxd5 {[%emt 0:01:12]} cxd4 {[%emt 0:00:04]} 10. Nxd4 {[%emt 0:00:04]} exd5 {[%emt 0:00:05]} 11. Be2 {[%emt 0:00:02]} Nc6 {[%emt 0:00:13]} 12. Nxc6 {[%emt 0:00:52]} bxc6 {[%emt 0:00:02]} 13. O-O {[%emt 0:00:01]} Be6 {[%emt 0:00:48]} 14. Na4 {[%emt 0:00:10]} Qd6 {[%emt 0:00:34]} 15. b3 {[%emt 0:00:10]} Be5 {[%emt 0:00:15]} 16. g3 {[%emt 0:00:14]} Bh3 {[%emt 0:00:09]} 17. Re1 {[%emt 0:00:04]} d4 {[%emt 0:00:54]} 18. exd4 {[%emt 0:00:50]} Bxd4 {[%emt 0:00:11]} 19. Bg4 {[%emt 0:01:00]} Bxg4 {[%emt 0:00:20]} 20. Qxg4 {[%emt 0:00:01]} c5 {[%emt 0:01:14]} 21. Qf3 {[%emt 0:00:50]} Rae8 {[%emt 0:00:50]} 22. Kg2 {[%emt 0:02:03]} Re6 {[%emt 0:00:19]} 23. Qd3 {[%emt 0:01:26]} Rfe8 {[%emt 0:00:47]} 24. Rxe6 {[%emt 0:00:33]} Rxe6 {[%emt 0:00:08]} 25. Rc2 {[%emt 0:00:21]} Re1 {[%emt 0:01:47]} 26. Qf3 {[%emt 0:02:26]} Qg6 {[%emt 0:01:47]} 27. Re2 {[%emt 0:00:40]} Qb1 {[%emt 0:01:05]} 28. Rxe1 {[%emt 0:01:10]} Qxe1 {[%emt 0:00:01]} 29. h3 {[%emt 0:00:26]} g6 {[%emt 0:00:16]} 30. h4 {[%emt 0:00:08]} h5 {[%emt 0:00:05]} 31. Qf4 {[%emt 0:00:33]} Qe2 {[%emt 0:00:22]} 32. b4 {[%emt 0:00:17]} Qxa2 {[%emt 0:01:01]} 33. Nxc5 {[%emt 0:00:10]} Bxc5 {[%emt 0:00:03]} 34. bxc5 {[%emt 0:00:08]} Qd5+ {[%emt 0:00:02]} 35. f3 {[%emt 0:00:19]} Qxc5 {[%emt 0:00:02]} 36. g4 {[%emt 0:00:13]} hxg4 {[%emt 0:00:02]} 37. fxg4 {[%emt 0:00:11]} a5 {[%emt 0:00:11]} 38. Qa4 {[%emt 0:01:45]} Qd5+ {[%emt 0:00:42]} 39. Kg3 {[%emt 0:00:11]} Qd3+ {[%emt 0:00:12]} 40. Kg2 {[%emt 0:00:18]} Qd2+ {[%emt 0:00:11]} 41. Kg3 {[%emt 0:00:07]} Qc3+ {[%emt 0:00:04]} 42. Kg2 {[%emt 0:00:05]} Kg7 {[%emt 0:00:03]} 43. g5 {[%emt 0:00:32]} Kh7 {[%emt 0:01:02]} 44. Qa2 {[%emt 0:01:36]} Kg8 {[%emt 0:00:47]} 45. Qa4 {[%emt 0:00:26]} Qd2+ {[%emt 0:00:29]} 46. Kg3 {[%emt 0:00:06]} Kh7 {[%emt 0:00:25]} 47. Qc4 {[%emt 0:00:16]} Qe1+ {[%emt 0:00:11]} 48. Kg2 {[%emt 0:00:11]} Qe6 {[%emt 0:00:09]} 49. Qa4 {[%emt 0:00:07]} Qd5+ {[%emt 0:00:21]} 50. Kg3 {[%emt 0:00:02]} Qd3+ {[%emt 0:00:08]} 51. Kg2 {[%emt 0:00:05]} Qd5+ {[%emt 0:00:09]} 52. Kh3 {[%emt 0:00:05]} Qe5 {[%emt 0:01:05]} 53. Kg2 {[%emt 0:00:23]} Qf5 {[%emt 0:00:21]} 54. Kg3 {[%emt 0:00:09]} Qc5 {[%emt 0:00:09]} 55. Qa2 {[%emt 0:00:15]} Qg1+ {[%emt 0:00:46]} 56. Kf3 {[%emt 0:00:21]} Qf1+ {[%emt 0:00:23]} 57. Kg3 {[%emt 0:00:02]} Qe1+ {[%emt 0:00:03]} 58. Kf3 {[%emt 0:00:13]} Kg8 {[%emt 0:00:07]} 59. Qa4 {[%emt 0:00:19]} Kf8 {[%emt 0:00:34]} 60. Qd4 {[%emt 0:00:06]} Kg8 {[%emt 0:01:08]} 61. Qa4 {[%emt 0:00:02]} Qb4 {[%emt 0:00:12]} 62. Qe8+ {[%emt 0:00:04]} Kg7 {[%emt 0:00:02]} 63. Qe5+ {[%emt 0:00:02]} Kh7 {[%emt 0:00:01]} 64. Qe8 {[%emt 0:00:20]} Qb3+ {[%emt 0:00:06]} 65. Kg4 {[%emt 0:00:10]} Qe6+ {[%emt 0:00:02]} 0-1

[Event "African Games-chT 2019"]
[Site "Casablanca"]
[Date "2019.08.25"]
[Round "6.22"]
[White "Mphungu, Gerrard"]
[Black "Kayonde, Andrew"]
[Result "0-1"]
[ECO "D44"]
[WhiteElo "2107"]
[BlackElo "2384"]
[Annotator "ChessBase"]
[PlyCount "40"]
[EventDate "2019.08.24"]
[EventType "team-tourn"]
[EventCountry "MAR"]
[SourceTitle "playchess.com"]
[Source "ChessBase"]
[SourceQuality "1"]
[WhiteTeam "MAW"]
[BlackTeam "Zambia"]
[BlackTeamCountry "ZAM"]
[TimeControl "900+10"]

1. d4 {[%emt 0:00:00]} d5 {[%emt 0:00:00]} 2. c4 {[%emt 0:00:00]} c6 {[%emt 0:00:00]} 3. Nf3 {[%emt 0:00:00]} Nf6 {[%emt 0:00:00]} 4. Nc3 {[%emt 0:00:00]} e6 {[%emt 0:00:03]} 5. Bg5 {[%emt 0:00:00]} dxc4 {[%emt 0:00:03]} 6. e4 {[%emt 0:00:13]} b5 {[%emt 0:00:04]} 7. e5 {[%emt 0:00:04]} h6 {[%emt 0:00:02]} 8. Bh4 {[%emt 0:00:00]} g5 {[%emt 0:00:01]} 9. Nxg5 {[%emt 0:00:01]} hxg5 {[%emt 0:00:03]} 10. Bxg5 {[%emt 0:00:01]} Nbd7 {[%emt 0:00:02]} 11. exf6 {[%emt 0:00:12]} Bb7 {[%emt 0:00:03]} 12. g3 {[%emt 0:04:58]} Qb6 {[%emt 0:00:53]} 13. Bg2 {[%emt 0:00:40]} O-O-O {[%emt 0:00:09]} 14. O-O {[%emt 0:01:58]} c5 {[%emt 0:00:07]} 15. d5 {[%emt 0:00:36]} b4 {[%emt 0:00:05]} 16. Rb1 {[%emt 0:00:36]} Qa6 {[%emt 0:00:26]} 17. dxe6 Bxg2 {[%emt 0:00:06]} 18. Kxg2 {[%emt 0:06:17]} Qxe6 {[%emt 0:00:05]} 19. Qd5 {[%emt 0:02:11]} bxc3 {[%emt 0:00:24]} 20. Qa8+ {[%emt 0:00:09]} Nb8 {[%emt 0:00:03]} 0-1

[Event "African Games-chT 2019"]
[Site "Casablanca"]
[Date "2019.08.25"]
[Round "6.23"]
[White "Mwango, Lorita"]
[Black "Nkhoma, Desiderata"]
[Result "1-0"]
[ECO "D02"]
[WhiteElo "1947"]
[BlackElo "1481"]
[Annotator "NA"]
[PlyCount "66"]
[EventDate "2019.08.24"]
[EventType "team-tourn"]
[EventCountry "MAR"]
[SourceTitle "playchess.com"]
[Source "ChessBase"]
[SourceQuality "1"]
[WhiteTeam "Zambia"]
[BlackTeam "MAW"]
[WhiteTeamCountry "ZAM"]
[TimeControl "900+10"]

1. d4 {[%emt 0:00:00]} d5 {[%emt 0:00:08]} 2. Nf3 {[%emt 0:00:00]} Nf6 {[%emt 0:00:02]} 3. Bf4 {[%emt 0:00:00]} g6 {[%emt 0:00:01]} 4. e3 {[%emt 0:00:01]} Bg7 {[%emt 0:00:02]} 5. Be2 {[%emt 0:00:10]} O-O {[%emt 0:00:02]} 6. h3 {[%emt 0:00:04]} Nc6 {[%emt 0:00:22]} 7. O-O {[%emt 0:00:04]} Re8 {[%emt 0:00:10]} 8. Nc3 {[%emt 0:00:21]} Nh5 {[%emt 0:00:49]} 9. Bh2 {[%emt 0:00:10]} Nf6 {[%emt 0:00:49]} 10. Nb5 {[%emt 0:00:29]} e5 {[%emt 0:03:00]} 11. dxe5 {[%emt 0:00:17]} Ne4 {[%emt 0:00:54]} 12. e6 {[%emt 0:05:13]} Nd6 {[%emt 0:03:10]} 13. exf7+ {[%emt 0:00:51]} Kxf7 {[%emt 0:00:09]} 14. Nxd6+ {[%emt 0:00:12]} cxd6 {[%emt 0:00:49]} 15. Qxd5+ {[%emt 0:00:11]} Kf8 {[%emt 0:03:11]} 16. Bxd6+ {[%emt 0:02:17]} Re7 {[%emt 0:03:09]} 17. Bc4 {[%emt 0:03:27]} Ke8 {[%emt 0:00:46]} 18. Ng5 {[%emt 0:01:26]} Qd7 {[%emt 0:00:16]} 19. Qg8+ {[%emt 0:00:36]} Bf8 {[%emt 0:00:01]} 20. Rad1 {[%emt 0:00:19]} Ne5 {[%emt 0:00:15]} 21. Bxe5 {[%emt 0:00:32]} Qf5 {[%emt 0:00:11]} 22. Bf4 {[%emt 0:01:14]} Bd7 {[%emt 0:00:09]} 23. Nxh7 {[%emt 0:00:14]} Rd8 {[%emt 0:00:13]} 24. Nxf8 {[%emt 0:00:12]} Qxf8 {[%emt 0:00:03]} 25. Qxg6+ {[%emt 0:00:15]} Rf7 {[%emt 0:00:01]} 26. Bxf7+ {[%emt 0:00:14]} Qxf7 {[%emt 0:00:08]} 27. Qxf7+ {[%emt 0:00:02]} Kxf7 {[%emt 0:00:01]} 28. Rd6 {[%emt 0:00:10]} b5 {[%emt 0:00:06]} 29. Rfd1 {[%emt 0:00:01]} Ke7 {[%emt 0:00:10]} 30. Bg5+ {[%emt 0:00:05]} Ke8 {[%emt 0:00:01]} 31. Bxd8 {[%emt 0:00:01]} Bc8 {[%emt 0:00:24]} 32. Ba5 {[%emt 0:00:06]} Bf5 {[%emt 0:00:29]} 33. e4 {[%emt 0:00:03]} Bc8 1-0

[Event "African Games-chT 2019"]
[Site "Casablanca"]
[Date "2019.08.25"]
[Round "6.24"]
[White "Msukwa, Tupokiwe"]
[Black "Mululu Linah"]
[Result "0-1"]
[ECO "D37"]
[WhiteElo "1289"]
[BlackElo "1633"]
[Annotator "NA"]
[PlyCount "68"]
[EventDate "2019.08.24"]
[EventType "team-tourn"]
[EventCountry "MAR"]
[SourceTitle "playchess.com"]
[Source "ChessBase"]
[SourceQuality "1"]
[WhiteTeam "MAW"]
[BlackTeam "Zambia"]
[BlackTeamCountry "ZAM"]
[TimeControl "900+10"]

1. d4 {[%emt 0:00:00]} d5 {[%emt 0:00:00]} 2. c4 {[%emt 0:00:00]} e6 {[%emt 0:00:00]} 3. Nc3 {[%emt 0:00:00]} Nf6 {[%emt 0:00:00]} 4. Nf3 {[%emt 0:00:00]} Nbd7 {[%emt 0:00:00]} 5. a3 {[%emt 0:00:01]} c6 {[%emt 0:00:01]} 6. c5 {[%emt 0:00:10]} b6 {[%emt 0:00:11]} 7. b4 {[%emt 0:00:02]} Be7 {[%emt 0:00:08]} 8. e3 {[%emt 0:00:07]} O-O {[%emt 0:00:08]} 9. Bd3 {[%emt 0:00:11]} a5 {[%emt 0:00:09]} 10. Bb2 {[%emt 0:00:02]} h6 {[%emt 0:00:11]} 11. h3 {[%emt 0:00:14]} axb4 {[%emt 0:00:01]} 12. axb4 {[%emt 0:00:02]} Bb7 {[%emt 0:00:02]} 13. O-O {[%emt 0:00:03]} bxc5 {[%emt 0:00:04]} 14. bxc5 {[%emt 0:00:04]} Qc7 {[%emt 0:00:07]} 15. Qc2 {[%emt 0:00:14]} Rfb8 {[%emt 0:00:11]} 16. Rxa8 {[%emt 0:00:19]} Rxa8 {[%emt 0:00:01]} 17. Ra1 {[%emt 0:00:02]} Rxa1+ {[%emt 0:00:04]} 18. Bxa1 {[%emt 0:00:02]} Qa5 {[%emt 0:00:19]} 19. Qb2 {[%emt 0:00:37]} Ba6 {[%emt 0:00:06]} 20. Bxa6 {[%emt 0:00:11]} Qxa6 {[%emt 0:00:01]} 21. Na2 {[%emt 0:01:27]} Ne4 {[%emt 0:00:12]} 22. Nb4 {[%emt 0:00:28]} Qb5 {[%emt 0:00:11]} 23. Nxd5 {[%emt 0:00:13]} exd5 {[%emt 0:00:10]} 24. Nd2 {[%emt 0:00:43]} Nxd2 {[%emt 0:00:09]} 25. Qxd2 {[%emt 0:00:03]} Qb1+ {[%emt 0:00:03]} 26. Kh2 {[%emt 0:00:11]} Qxa1 {[%emt 0:00:01]} 27. Qd3 {[%emt 0:00:32]} Qe1 {[%emt 0:00:43]} 28. Qf5 {[%emt 0:00:24]} Nf6 {[%emt 0:00:41]} 29. Qc8+ {[%emt 0:00:41]} Kh7 {[%emt 0:00:01]} 30. Kg3 {[%emt 0:01:30]} Ne4+ {[%emt 0:00:08]} 31. Kh2 {[%emt 0:00:16]} Qxf2 {[%emt 0:00:05]} 32. Qxc6 {[%emt 0:00:05]} Bh4 {[%emt 0:00:19]} 33. Qxd5 {[%emt 0:00:37]} Bg3+ {[%emt 0:00:03]} 34. Kh1 {[%emt 0:00:04]} Qf1# {[%emt 0:00:02]} 0-1

[Event "African Games-chT 2019"]
[Site "Casablanca"]
[Date "2019.08.25"]
[Round "6.26"]
[White "Espirito Santo, Waldyr"]
[Black "Traore, Bakary"]
[Result "1-0"]
[ECO "C47"]
[WhiteElo "1923"]
[BlackElo "2189"]
[Annotator "NA"]
[PlyCount "105"]
[EventDate "2019.08.24"]
[EventType "team-tourn"]
[EventCountry "MAR"]
[SourceTitle "playchess.com"]
[Source "ChessBase"]
[SourceQuality "1"]
[WhiteTeam "STP"]
[BlackTeam "Mali"]
[BlackTeamCountry "MLI"]
[TimeControl "900+10"]

1. e4 {[%emt 0:00:00]} e5 {[%emt 0:00:00]} 2. Nf3 {[%emt 0:00:02]} Nf6 {[%emt 0:00:00]} 3. Nc3 {[%emt 0:00:05]} Nc6 {[%emt 0:00:00]} 4. Be2 {[%emt 0:00:24]} Bb4 {[%emt 0:00:06]} 5. d3 {[%emt 0:00:02]} O-O {[%emt 0:00:13]} 6. O-O {[%emt 0:00:02]} d5 {[%emt 0:00:04]} 7. exd5 {[%emt 0:00:23]} Nxd5 {[%emt 0:00:03]} 8. Bg5 {[%emt 0:00:39]} f6 {[%emt 0:00:10]} 9. Bd2 {[%emt 0:00:11]} Nxc3 {[%emt 0:00:10]} 10. bxc3 {[%emt 0:00:09]} Bc5 {[%emt 0:00:02]} 11. Ne1 {[%emt 0:00:30]} Be6 {[%emt 0:00:15]} 12. Be3 {[%emt 0:00:17]} Bb6 {[%emt 0:00:08]} 13. Qd2 {[%emt 0:00:43]} f5 {[%emt 0:00:09]} 14. f4 {[%emt 0:00:56]} Qd6 {[%emt 0:03:05]} 15. Bxb6 {[%emt 0:01:10]} axb6 {[%emt 0:00:03]} 16. a4 {[%emt 0:00:29]} Rae8 {[%emt 0:00:23]} 17. fxe5 {[%emt 0:00:45]} Qxe5 {[%emt 0:00:30]} 18. Nf3 {[%emt 0:00:17]} Qd6 {[%emt 0:00:13]} 19. d4 {[%emt 0:01:14]} Bd5 {[%emt 0:00:13]} 20. Bb5 {[%emt 0:00:27]} Bxf3 {[%emt 0:02:22]} 21. Rxf3 {[%emt 0:00:31]} Re7 {[%emt 0:00:17]} 22. Qf2 {[%emt 0:00:26]} Qd5 {[%emt 0:01:34]} 23. Rf1 {[%emt 0:00:17]} g6 {[%emt 0:00:23]} 24. Qh4 {[%emt 0:00:46]} Qd6 {[%emt 0:01:40]} 25. Bc4+ {[%emt 0:00:26]} Kh8 {[%emt 0:00:32]} 26. Qh6 {[%emt 0:00:28]} Rfe8 {[%emt 0:00:46]} 27. Rf4 {[%emt 0:03:31]} Re1 {[%emt 0:00:45]} 28. h4 {[%emt 0:01:15]} Rxf1+ {[%emt 0:00:20]} 29. Bxf1 {[%emt 0:00:33]} Qf8 {[%emt 0:00:14]} 30. Qg5 {[%emt 0:00:12]} Qe7 {[%emt 0:00:02]} 31. Qh6 {[%emt 0:00:54]} Qg7 {[%emt 0:00:05]} 32. Qg5 Qe7 {[%emt 0:00:25]} 33. Qh6 {[%emt 0:00:16]} Nd8 {[%emt 0:00:16]} 34. Bc4 {[%emt 0:01:07]} Nf7 {[%emt 0:02:25]} 35. Bxf7 {[%emt 0:00:05]} Qxf7 {[%emt 0:00:01]} 36. Qg5 {[%emt 0:00:44]} Qe7 {[%emt 0:00:54]} 37. Qxe7 {[%emt 0:00:25]} Rxe7 {[%emt 0:00:02]} 38. Kf2 {[%emt 0:00:14]} Kg7 {[%emt 0:00:01]} 39. c4 {[%emt 0:00:17]} Re8 {[%emt 0:00:13]} 40. c5 {[%emt 0:00:12]} bxc5 {[%emt 0:00:05]} 41. dxc5 {[%emt 0:00:02]} Re5 {[%emt 0:00:05]} 42. Rc4 {[%emt 0:00:04]} Kf6 {[%emt 0:00:03]} 43. a5 {[%emt 0:00:12]} Re4 {[%emt 0:00:04]} 44. Rxe4 {[%emt 0:00:09]} fxe4 45. c6 bxc6 {[%emt 0:00:55]} 46. a6 {[%emt 0:00:11]} Kf5 {[%emt 0:00:01]} 47. a7 {[%emt 0:00:01]} Kg4 {[%emt 0:00:01]} 48. g3 {[%emt 0:00:07]} e3+ {[%emt 0:00:01]} 49. Kxe3 {[%emt 0:00:03]} Kxg3 {[%emt 0:00:01]} 50. a8=Q {[%emt 0:00:06]} Kxh4 {[%emt 0:00:01]} 51. Qf8 {[%emt 0:00:06]} h5 {[%emt 0:00:02]} 52. Qf2+ {[%emt 0:00:09]} Kh3 {[%emt 0:00:02]} 53. Kf3 {[%emt 0:00:06]} 1-0